[Event "*** Titled Tuesday Blitz"]
[Site "Chess.com"]
[Date "2020.04.28"]
[Round "7"]
[White "relaxx87"]
[Black "MergenKakabaev"]
[Result "1/2-1/2"]
[WhiteElo "2688"]
[BlackElo "2451"]
[TimeControl "180+1"]
[EndTime "11:18:12 PDT"]
[Termination "Game drawn by repetition"]

1. e4 {[%clk 0:02:58.7]} 1... e5 {[%clk 0:02:59.4]} 2. Nf3 {[%clk 0:02:58.3]}
2... Nc6 {[%clk 0:02:59.6]} 3. Bb5 {[%clk 0:02:57.7]} 3... a6 {[%clk 0:02:59.1]}
4. Ba4 {[%clk 0:02:57.3]} 4... Nf6 {[%clk 0:02:59.2]} 5. O-O {[%clk 0:02:57]}
5... Be7 {[%clk 0:02:59.7]} 6. Re1 {[%clk 0:02:56.6]} 6... b5 {[%clk 0:02:58.6]}
7. Bb3 {[%clk 0:02:56.4]} 7... d6 {[%clk 0:02:59.3]} 8. c3 {[%clk 0:02:55.3]}
8... O-O {[%clk 0:02:58.9]} 9. h3 {[%clk 0:02:55.6]} 9... Na5 {[%clk 0:02:59.1]}
10. Bc2 {[%clk 0:02:55.3]} 10... c5 {[%clk 0:02:59.7]} 11. d4 {[%clk 0:02:55.3]}
11... Qc7 {[%clk 0:02:59.9]} 12. d5 {[%clk 0:02:47.8]} 12... c4 {[%clk
0:02:59.8]} 13. b4 {[%clk 0:02:40.8]} 13... cxb3 {[%clk 0:02:59.3]} 14. axb3
{[%clk 0:02:41.7]} 14... Bd7 {[%clk 0:02:59.4]} 15. Bb2 {[%clk 0:02:35.7]} 15...
Nb7 {[%clk 0:02:58.8]} 16. b4 {[%clk 0:02:28.2]} 16... a5 {[%clk 0:02:58.8]} 17.
Na3 {[%clk 0:02:26.2]} 17... a4 {[%clk 0:02:58.5]} 18. Bd3 {[%clk 0:02:25.5]}
18... Qb6 {[%clk 0:02:58.1]} 19. Qe2 {[%clk 0:02:24.7]} 19... Nh5 {[%clk
0:02:51.1]} 20. Bxb5 {[%clk 0:02:19.9]} 20... Nf4 {[%clk 0:02:21.5]} 21. Qe3
{[%clk 0:02:18.5]} 21... Qc7 {[%clk 0:02:20.5]} 22. Bxd7 {[%clk 0:02:10.4]}
22... Qxd7 {[%clk 0:02:21.4]} 23. c4 {[%clk 0:02:09.4]} 23... f6 {[%clk
0:02:20.8]} 24. Rac1 {[%clk 0:02:06.5]} 24... Rfc8 {[%clk 0:02:19.4]} 25. Rc2
{[%clk 0:01:57.8]} 25... Qe8 {[%clk 0:02:18.9]} 26. Kh2 {[%clk 0:01:54]} 26...
Qh5 {[%clk 0:02:16.8]} 27. Rec1 {[%clk 0:01:49.1]} 27... g5 {[%clk 0:02:15]} 28.
c5 {[%clk 0:01:31]} 28... dxc5 {[%clk 0:02:13.6]} 29. bxc5 {[%clk 0:01:30.5]}
29... Nxc5 {[%clk 0:02:11.8]} 30. Rxc5 {[%clk 0:01:29.9]} 30... Bxc5 {[%clk
0:02:11.9]} 31. Rxc5 {[%clk 0:01:29.7]} 31... Rxc5 {[%clk 0:02:12.5]} 32. Qxc5
{[%clk 0:01:30.6]} 32... g4 {[%clk 0:02:12.6]} 33. Ng1 {[%clk 0:01:26.1]} 33...
gxh3 {[%clk 0:02:10.9]} 34. g3 {[%clk 0:01:25.5]} 34... Rb8 {[%clk 0:01:50.5]}
35. Nc4 {[%clk 0:01:08.5]} 35... Nd3 {[%clk 0:01:46.2]} 36. Qc7 {[%clk
0:01:01.7]} 36... Rf8 {[%clk 0:01:37.3]} 37. Qb6 {[%clk 0:00:25.9]} 37... Qd1
{[%clk 0:01:30.8]} 38. Qe6+ {[%clk 0:00:19.4]} 38... Kg7 {[%clk 0:01:29.9]} 39.
Nxe5 {[%clk 0:00:18.8]} 39... fxe5 {[%clk 0:01:15.3]} 40. Bxe5+ {[%clk
0:00:18.4]} 40... Nxe5 {[%clk 0:01:14.5]} 41. Qxe5+ {[%clk 0:00:19.3]} 41... Kg8
{[%clk 0:01:14.9]} 42. Nxh3 {[%clk 0:00:19.2]} 42... Qg4 {[%clk 0:01:10.5]} 43.
Nf4 {[%clk 0:00:18.9]} 43... a3 {[%clk 0:01:09]} 44. d6 {[%clk 0:00:18.8]} 44...
a2 {[%clk 0:01:08.7]} 45. Qd5+ {[%clk 0:00:18.7]} 45... Kh8 {[%clk 0:01:07.4]}
46. Qxa2 {[%clk 0:00:19.6]} 46... Rxf4 {[%clk 0:01:06.9]} 47. Qb2+ {[%clk
0:00:18.8]} 47... Kg8 {[%clk 0:01:05.9]} 48. gxf4 {[%clk 0:00:13.1]} 48... Qxf4+
{[%clk 0:01:05.8]} 49. Kg1 {[%clk 0:00:13.7]} 49... Qg4+ {[%clk 0:01:05.9]} 50.
Kf1 {[%clk 0:00:13.7]} 50... Qd1+ {[%clk 0:01:05.7]} 51. Kg2 {[%clk 0:00:14.1]}
51... Qg4+ {[%clk 0:01:06.6]} 52. Kh2 {[%clk 0:00:14.6]} 52... Qh4+ {[%clk
0:01:06.9]} 53. Kg1 {[%clk 0:00:15]} 53... Qg4+ {[%clk 0:01:07.8]} 54. Kh1
{[%clk 0:00:15.3]} 54... Qh4+ {[%clk 0:01:07.8]} 55. Kg2 {[%clk 0:00:15.7]}
55... Qg4+ {[%clk 0:01:08.1]} 56. Kf1 {[%clk 0:00:16.6]} 56... Qd1+ {[%clk
0:01:07.8]} 57. Kg2 {[%clk 0:00:17.1]} 57... Qg4+ {[%clk 0:01:08.7]} 1/2-1/2

[Event "*** Titled Tuesday Blitz"]
[Site "Chess.com"]
[Date "2020.04.28"]
[Round "7"]
[White "Omk124"]
[Black "AlanZhang"]
[Result "1-0"]
[WhiteElo "2355"]
[BlackElo "2163"]
[TimeControl "180+1"]
[EndTime "11:18:12 PDT"]
[Termination "Omk124 won by checkmate"]

1. e4 {[%clk 0:03:00.9]} 1... e5 {[%clk 0:02:59.8]} 2. Nf3 {[%clk 0:03:00.6]}
2... Nc6 {[%clk 0:03:00.3]} 3. Bc4 {[%clk 0:03:00.2]} 3... Bc5 {[%clk
0:02:59.9]} 4. c3 {[%clk 0:02:59.4]} 4... Nf6 {[%clk 0:02:59.8]} 5. d3 {[%clk
0:02:59.9]} 5... d6 {[%clk 0:02:59.5]} 6. O-O {[%clk 0:02:59.1]} 6... Bb6 {[%clk
0:02:58.1]} 7. Nbd2 {[%clk 0:02:56.6]} 7... O-O {[%clk 0:02:57.3]} 8. Re1 {[%clk
0:02:56.6]} 8... h6 {[%clk 0:02:57.6]} 9. Nf1 {[%clk 0:02:55.3]} 9... Re8 {[%clk
0:02:57.3]} 10. Ng3 {[%clk 0:02:55.2]} 10... Be6 {[%clk 0:02:56.6]} 11. Bb3
{[%clk 0:02:54.1]} 11... d5 {[%clk 0:02:54.7]} 12. exd5 {[%clk 0:02:53.9]} 12...
Bxd5 {[%clk 0:02:54.5]} 13. Bc2 {[%clk 0:02:46.5]} 13... Qd7 {[%clk 0:02:48.5]}
14. b4 {[%clk 0:02:41.2]} 14... a6 {[%clk 0:01:31.6]} 15. Bb2 {[%clk 0:02:29.2]}
15... Ng4 {[%clk 0:01:19.9]} 16. Rf1 {[%clk 0:02:26.8]} 16... f5 {[%clk
0:01:02.6]} 17. h3 {[%clk 0:02:05.7]} 17... Nf6 {[%clk 0:01:00.8]} 18. a3 {[%clk
0:01:58.4]} 18... f4 {[%clk 0:00:37.5]} 19. Ne4 {[%clk 0:01:58]} 19... Nxe4
{[%clk 0:00:30]} 20. dxe4 {[%clk 0:01:57.7]} 20... Be6 {[%clk 0:00:29.8]} 21.
Qxd7 {[%clk 0:01:57.8]} 21... Bxd7 {[%clk 0:00:30.7]} 22. c4 {[%clk 0:01:58.4]}
22... Bd4 {[%clk 0:00:23.9]} 23. Nxd4 {[%clk 0:01:52.4]} 23... exd4 {[%clk
0:00:20.8]} 24. Rad1 {[%clk 0:01:48.3]} 24... Be6 {[%clk 0:00:20.9]} 25. Bd3
{[%clk 0:01:32.2]} 25... Rad8 {[%clk 0:00:20.3]} 26. Rfe1 {[%clk 0:01:31]} 26...
Ne5 {[%clk 0:00:20.1]} 27. c5 {[%clk 0:01:30.1]} 27... Bb3 {[%clk 0:00:18.3]}
28. Rd2 {[%clk 0:01:28.9]} 28... f3 {[%clk 0:00:12.3]} 29. g3 {[%clk 0:01:27.5]}
29... g5 {[%clk 0:00:09.5]} 30. Bb1 {[%clk 0:01:26.4]} 30... Nc6 {[%clk
0:00:07.8]} 31. Rd3 {[%clk 0:01:24.4]} 31... Bc4 {[%clk 0:00:07.5]} 32. Rxf3
{[%clk 0:01:23.9]} 32... d3 {[%clk 0:00:07.4]} 33. Rd1 {[%clk 0:00:59]} 33... d2
{[%clk 0:00:07.3]} 34. Re3 {[%clk 0:00:59.2]} 34... Ne5 {[%clk 0:00:06.1]} 35.
Bc3 {[%clk 0:00:57.1]} 35... Nf3+ {[%clk 0:00:03.5]} 36. Rxf3 {[%clk 0:00:40.2]}
36... Be2 {[%clk 0:00:03.7]} 37. Ba2+ {[%clk 0:00:40.8]} 37... Kh7 {[%clk
0:00:03.6]} 38. Rf7+ {[%clk 0:00:40.8]} 38... Kg6 {[%clk 0:00:04]} 39. Rg7+
{[%clk 0:00:40.3]} 39... Kh5 {[%clk 0:00:04.2]} 40. Bf7# {[%clk 0:00:40.9]} 1-0

[Event "*** Titled Tuesday Blitz"]
[Site "Chess.com"]
[Date "2020.04.28"]
[Round "7"]
[White "atwalcb"]
[Black "sergeikim"]
[Result "1/2-1/2"]
[WhiteElo "2275"]
[BlackElo "2416"]
[TimeControl "180+1"]
[EndTime "11:18:13 PDT"]
[Termination "Game drawn by agreement"]

1. d4 {[%clk 0:03:00.9]} 1... Nf6 {[%clk 0:02:57.1]} 2. Bg5 {[%clk 0:03:00.7]}
2... g6 {[%clk 0:02:56.6]} 3. Bxf6 {[%clk 0:03:00.8]} 3... exf6 {[%clk
0:02:56.6]} 4. e3 {[%clk 0:03:01.2]} 4... h5 {[%clk 0:02:56.6]} 5. c4 {[%clk
0:02:52.8]} 5... h4 {[%clk 0:02:55.8]} 6. Nc3 {[%clk 0:02:51.4]} 6... d6 {[%clk
0:02:55.9]} 7. h3 {[%clk 0:02:50.5]} 7... f5 {[%clk 0:02:54.4]} 8. Bd3 {[%clk
0:02:48]} 8... Bg7 {[%clk 0:02:54.3]} 9. Nf3 {[%clk 0:02:47.8]} 9... Nd7 {[%clk
0:02:51.7]} 10. O-O {[%clk 0:02:46.9]} 10... Nf6 {[%clk 0:02:51.5]} 11. e4
{[%clk 0:02:47.1]} 11... fxe4 {[%clk 0:02:50.7]} 12. Nxe4 {[%clk 0:02:47]} 12...
Nxe4 {[%clk 0:02:50.2]} 13. Bxe4 {[%clk 0:02:47.3]} 13... c6 {[%clk 0:02:48.4]}
14. Re1 {[%clk 0:02:41.5]} 14... O-O {[%clk 0:02:47.3]} 15. Qd2 {[%clk
0:02:35.4]} 15... Qf6 {[%clk 0:02:46]} 16. Rad1 {[%clk 0:02:30.2]} 16... Bd7
{[%clk 0:02:43.6]} 17. Qg5 {[%clk 0:02:29.7]} 17... Qxg5 {[%clk 0:02:42.6]} 18.
Nxg5 {[%clk 0:02:30]} 18... Rfe8 {[%clk 0:02:39.1]} 19. Nf3 {[%clk 0:02:27.9]}
19... Bf6 {[%clk 0:02:38.1]} 20. Bc2 {[%clk 0:02:26.9]} 20... Rxe1+ {[%clk
0:02:35.6]} 21. Rxe1 {[%clk 0:02:26.7]} 21... Kg7 {[%clk 0:02:31.7]} 22. b3
{[%clk 0:02:23.2]} 22... a6 {[%clk 0:02:29.9]} 23. Re4 {[%clk 0:02:21.9]} 23...
Rh8 {[%clk 0:02:22.3]} 24. Re2 {[%clk 0:02:15.1]} 24... b5 {[%clk 0:02:20.4]}
25. Bd3 {[%clk 0:02:13.1]} 25... Rb8 {[%clk 0:02:11]} 26. c5 {[%clk 0:02:09]}
26... dxc5 {[%clk 0:02:07.6]} 27. dxc5 {[%clk 0:02:09.3]} 27... a5 {[%clk
0:02:01]} 28. Ne5 {[%clk 0:02:06.1]} 28... Be8 {[%clk 0:01:59.3]} 29. Nf3 {[%clk
0:01:57.1]} 29... a4 {[%clk 0:01:56.1]} 30. Be4 {[%clk 0:01:51.5]} 30... Rd8
{[%clk 0:01:46.4]} 31. Bc2 {[%clk 0:01:40.2]} 31... a3 {[%clk 0:01:42.9]} 32.
Re4 {[%clk 0:01:32.2]} 32... g5 {[%clk 0:01:34]} 33. Kf1 {[%clk 0:01:32.3]}
33... Bd7 {[%clk 0:01:31.9]} 34. Re1 {[%clk 0:01:28.7]} 34... Be6 {[%clk
0:01:28]} 35. Be4 {[%clk 0:01:26.2]} 35... Bxb3 {[%clk 0:01:25.1]} 36. axb3
{[%clk 0:01:22.3]} 36... a2 {[%clk 0:01:24.4]} 37. Bxc6 {[%clk 0:01:22.5]} 37...
b4 {[%clk 0:01:18.5]} 38. Bb7 {[%clk 0:01:18.3]} 38... a1=Q {[%clk 0:01:14.7]}
39. Rxa1 {[%clk 0:01:17.7]} 39... Bxa1 {[%clk 0:01:15.1]} 40. c6 {[%clk
0:01:17.9]} 40... Rd1+ {[%clk 0:01:14.4]} 41. Ke2 {[%clk 0:01:18]} 41... Rc1
{[%clk 0:01:14.8]} 42. Nxg5 {[%clk 0:01:11.9]} 42... Be5 {[%clk 0:01:10]} 43.
Ne4 {[%clk 0:01:12]} 43... Rc2+ {[%clk 0:01:07.3]} 44. Kd3 {[%clk 0:01:11.6]}
44... Rc1 {[%clk 0:01:05]} 45. Nd2 {[%clk 0:01:11.4]} 45... Rc3+ {[%clk
0:01:03]} 46. Ke4 {[%clk 0:01:11.4]} 46... Bc7 {[%clk 0:01:02.2]} 47. Kd4 {[%clk
0:01:04.1]} 47... Bb6+ {[%clk 0:00:59.5]} 48. Kd5 {[%clk 0:00:59.6]} 48... Bxf2
{[%clk 0:00:56.1]} 49. Ne4 {[%clk 0:00:59.9]} 49... Rd3+ {[%clk 0:00:53.2]} 50.
Kc4 {[%clk 0:00:47.5]} 50... Rd4+ {[%clk 0:00:52.8]} 51. Kb5 {[%clk 0:00:47.8]}
51... Rxe4 {[%clk 0:00:31.1]} 52. c7 {[%clk 0:00:48]} 52... Re8 {[%clk
0:00:29.4]} 53. c8=Q {[%clk 0:00:47.9]} 53... Rxc8 {[%clk 0:00:29.2]} 54. Bxc8
{[%clk 0:00:48.8]} 54... Be1 {[%clk 0:00:29.1]} 55. Kc4 {[%clk 0:00:48.5]}
1/2-1/2

[Event "*** Titled Tuesday Blitz"]
[Site "Chess.com"]
[Date "2020.04.28"]
[Round "7"]
[White "walkingcreep"]
[Black "mortngabriel"]
[Result "1-0"]
[WhiteElo "2645"]
[BlackElo "2472"]
[TimeControl "180+1"]
[EndTime "11:18:15 PDT"]
[Termination "walkingcreep won on time"]

1. d4 {[%clk 0:03:00.9]} 1... Nf6 {[%clk 0:02:59.7]} 2. c4 {[%clk 0:02:57]} 2...
e6 {[%clk 0:02:59.6]} 3. Nc3 {[%clk 0:02:55.9]} 3... Bb4 {[%clk 0:03:00.1]} 4.
g3 {[%clk 0:02:49]} 4... d5 {[%clk 0:02:45.9]} 5. Bg2 {[%clk 0:02:47.1]} 5...
O-O {[%clk 0:02:44.8]} 6. Nf3 {[%clk 0:02:46.8]} 6... dxc4 {[%clk 0:02:24.7]} 7.
O-O {[%clk 0:02:42.4]} 7... Nbd7 {[%clk 0:02:14.5]} 8. Qc2 {[%clk 0:02:22]} 8...
c5 {[%clk 0:01:58.6]} 9. Rd1 {[%clk 0:02:10.8]} 9... cxd4 {[%clk 0:01:34.6]} 10.
Nxd4 {[%clk 0:02:11.7]} 10... a6 {[%clk 0:01:27.4]} 11. Na4 {[%clk 0:01:30.4]}
11... Qc7 {[%clk 0:01:08.4]} 12. a3 {[%clk 0:01:21.6]} 12... Be7 {[%clk
0:01:04.4]} 13. Bf4 {[%clk 0:01:13.7]} 13... e5 {[%clk 0:00:48.9]} 14. Nf5
{[%clk 0:01:13.6]} 14... Re8 {[%clk 0:00:38.1]} 15. Nxe7+ {[%clk 0:01:12.6]}
15... Rxe7 {[%clk 0:00:39]} 16. Be3 {[%clk 0:01:07]} 16... Rb8 {[%clk
0:00:37.4]} 17. Nc3 {[%clk 0:01:03]} 17... b5 {[%clk 0:00:34.3]} 18. Bg5 {[%clk
0:01:02.3]} 18... Re8 {[%clk 0:00:29.1]} 19. Ne4 {[%clk 0:00:49.8]} 19... Nxe4
{[%clk 0:00:26.3]} 20. Bxe4 {[%clk 0:00:50.7]} 20... h6 {[%clk 0:00:26.6]} 21.
Be3 {[%clk 0:00:49.7]} 21... Nf6 {[%clk 0:00:21.9]} 22. Bg2 {[%clk 0:00:48.3]}
22... Bb7 {[%clk 0:00:21.9]} 23. Bxb7 {[%clk 0:00:46.5]} 23... Qxb7 {[%clk
0:00:22.8]} 24. a4 {[%clk 0:00:45.6]} 24... Rbd8 {[%clk 0:00:20.5]} 25. axb5
{[%clk 0:00:42.5]} 25... axb5 {[%clk 0:00:21.1]} 26. Qf5 {[%clk 0:00:42.1]}
26... b4 {[%clk 0:00:11.7]} 27. Bxh6 {[%clk 0:00:39.6]} 27... Qe4 {[%clk
0:00:05.2]} 28. Qxe4 {[%clk 0:00:31.1]} 28... Nxe4 {[%clk 0:00:06.1]} 29. Be3
{[%clk 0:00:31.3]} 29... c3 {[%clk 0:00:05.4]} 30. bxc3 {[%clk 0:00:29.5]} 30...
Nxc3 {[%clk 0:00:06.3]} 31. Re1 {[%clk 0:00:29.5]} 31... b3 {[%clk 0:00:03.2]}
32. Rac1 {[%clk 0:00:20.5]} 32... Rc8 {[%clk 0:00:03.3]} 33. Bd2 {[%clk
0:00:20]} 1-0

[Event "*** Titled Tuesday Blitz"]
[Site "Chess.com"]
[Date "2020.04.28"]
[Round "7"]
[White "Sibelephant"]
[Black "Keranke"]
[Result "1-0"]
[WhiteElo "3190"]
[BlackElo "2773"]
[TimeControl "180+1"]
[EndTime "11:18:18 PDT"]
[Termination "Sibelephant won by resignation"]

1. d4 {[%clk 0:02:55.1]} 1... Nf6 {[%clk 0:02:58.8]} 2. Nf3 {[%clk 0:02:55.4]}
2... g6 {[%clk 0:02:59.1]} 3. Bg5 {[%clk 0:02:55.6]} 3... Bg7 {[%clk 0:02:59.4]}
4. Nbd2 {[%clk 0:02:56.3]} 4... d6 {[%clk 0:02:56.3]} 5. e3 {[%clk 0:02:56.1]}
5... O-O {[%clk 0:02:55.3]} 6. Bc4 {[%clk 0:02:56]} 6... Nbd7 {[%clk 0:02:55.9]}
7. O-O {[%clk 0:02:55.6]} 7... Re8 {[%clk 0:02:56.1]} 8. c3 {[%clk 0:02:43.5]}
8... e5 {[%clk 0:02:55.7]} 9. a4 {[%clk 0:02:27.9]} 9... Qe7 {[%clk 0:02:54.4]}
10. a5 {[%clk 0:02:27]} 10... e4 {[%clk 0:02:49.9]} 11. Ne1 {[%clk 0:02:26.9]}
11... h6 {[%clk 0:02:47.8]} 12. Bh4 {[%clk 0:02:26.7]} 12... c6 {[%clk
0:02:46.7]} 13. Nc2 {[%clk 0:01:55.9]} 13... Nf8 {[%clk 0:02:40.4]} 14. f3
{[%clk 0:01:48]} 14... d5 {[%clk 0:02:37.3]} 15. fxe4 {[%clk 0:01:48.2]} 15...
g5 {[%clk 0:02:24.7]} 16. Bg3 {[%clk 0:01:31.3]} 16... dxc4 {[%clk 0:02:21.3]}
17. e5 {[%clk 0:01:31.8]} 17... Nd5 {[%clk 0:02:14.9]} 18. Nxc4 {[%clk 0:01:32]}
18... Be6 {[%clk 0:02:08.1]} 19. Nd6 {[%clk 0:01:30]} 19... Red8 {[%clk
0:02:07.9]} 20. c4 {[%clk 0:01:21.5]} 20... Nc7 {[%clk 0:02:03.9]} 21. Qf3
{[%clk 0:00:58.3]} 21... Ne8 {[%clk 0:02:00.4]} 22. c5 {[%clk 0:00:40.3]} 22...
Nxd6 {[%clk 0:01:55.1]} 23. cxd6 {[%clk 0:00:40.7]} 23... Qd7 {[%clk 0:01:54.9]}
24. e4 {[%clk 0:00:35.4]} 24... Ng6 {[%clk 0:01:34.6]} 25. Ne3 {[%clk 0:00:35]}
25... Qe8 {[%clk 0:01:26.8]} 26. b4 {[%clk 0:00:30]} 26... b6 {[%clk 0:01:26.6]}
27. Nf5 {[%clk 0:00:28.5]} 27... Rac8 {[%clk 0:00:50.8]} 28. axb6 {[%clk
0:00:27.7]} 28... axb6 {[%clk 0:00:50.9]} 29. Nxg7 {[%clk 0:00:15.4]} 29... Kxg7
{[%clk 0:00:50.9]} 30. d5 {[%clk 0:00:16]} 30... Bd7 {[%clk 0:00:46.8]} 31. Qf6+
{[%clk 0:00:15.6]} 31... Kg8 {[%clk 0:00:44.9]} 32. Ra7 {[%clk 0:00:12.8]} 32...
cxd5 {[%clk 0:00:40.5]} 33. exd5 {[%clk 0:00:13.2]} 33... Rc2 {[%clk 0:00:40.6]}
34. e6 {[%clk 0:00:12.8]} 34... Nh8 {[%clk 0:00:12.8]} 35. Be5 {[%clk
0:00:11.9]} 1-0

[Event "*** Titled Tuesday Blitz"]
[Site "Chess.com"]
[Date "2020.04.28"]
[Round "7"]
[White "ShahMatKanal"]
[Black "Ceejay271"]
[Result "0-1"]
[WhiteElo "2437"]
[BlackElo "2335"]
[TimeControl "180+1"]
[EndTime "11:18:18 PDT"]
[Termination "Ceejay271 won by resignation"]

1. e4 {[%clk 0:03:00.9]} 1... c5 {[%clk 0:02:58.8]} 2. Nc3 {[%clk 0:03:00.7]}
2... g6 {[%clk 0:02:57.1]} 3. d4 {[%clk 0:03:00.5]} 3... cxd4 {[%clk 0:02:56.5]}
4. Qxd4 {[%clk 0:03:01.4]} 4... Nf6 {[%clk 0:02:56]} 5. b3 {[%clk 0:03:00.7]}
5... Nc6 {[%clk 0:02:55.3]} 6. Qd2 {[%clk 0:02:58.9]} 6... Bg7 {[%clk 0:02:53]}
7. f3 {[%clk 0:02:49.2]} 7... d5 {[%clk 0:02:44.8]} 8. Bb2 {[%clk 0:02:33.5]}
8... d4 {[%clk 0:02:19.3]} 9. Nce2 {[%clk 0:02:30.3]} 9... e5 {[%clk 0:02:18.5]}
10. c3 {[%clk 0:02:15.9]} 10... O-O {[%clk 0:02:01.7]} 11. Ng3 {[%clk
0:01:42.4]} 11... h5 {[%clk 0:01:54.4]} 12. Bb5 {[%clk 0:01:37.1]} 12... dxc3
{[%clk 0:01:50.5]} 13. Bxc3 {[%clk 0:01:27.5]} 13... Nd4 {[%clk 0:01:47]} 14.
Bd3 {[%clk 0:01:15.2]} 14... h4 {[%clk 0:01:42.4]} 15. N3e2 {[%clk 0:01:14.3]}
15... h3 {[%clk 0:01:38.6]} 16. g3 {[%clk 0:01:02.2]} 16... a5 {[%clk
0:01:08.4]} 17. Bb2 {[%clk 0:00:42.8]} 17... a4 {[%clk 0:01:07.3]} 18. Nxd4
{[%clk 0:00:41.2]} 18... exd4 {[%clk 0:01:06.4]} 19. Ne2 {[%clk 0:00:41]} 19...
axb3 {[%clk 0:01:05.9]} 20. axb3 {[%clk 0:00:39.9]} 20... Rxa1+ {[%clk
0:01:04.9]} 21. Bxa1 {[%clk 0:00:40.8]} 21... Be6 {[%clk 0:01:05]} 22. Nxd4
{[%clk 0:00:30.2]} 22... Qb6 {[%clk 0:00:52.7]} 23. Nxe6 {[%clk 0:00:27.4]}
23... fxe6 {[%clk 0:00:52.4]} 24. Bc4 {[%clk 0:00:20.4]} 24... Rd8 {[%clk
0:00:51.1]} 25. Bxe6+ {[%clk 0:00:17.4]} 25... Kf8 {[%clk 0:00:49.6]} 26. Bd5
{[%clk 0:00:10.4]} 26... Nxd5 {[%clk 0:00:35.2]} 27. Bxg7+ {[%clk 0:00:09.7]}
27... Kxg7 {[%clk 0:00:34.7]} 28. exd5 {[%clk 0:00:10.6]} 28... Re8+ {[%clk
0:00:29.6]} 29. Kd1 {[%clk 0:00:10.2]} 29... Re3 {[%clk 0:00:28.2]} 30. Re1
{[%clk 0:00:07.4]} 30... Rxb3 {[%clk 0:00:27.4]} 31. Re7+ {[%clk 0:00:04.9]}
31... Kf8 {[%clk 0:00:22.9]} 32. Re4 {[%clk 0:00:03.2]} 32... Rb1+ {[%clk
0:00:22]} 33. Ke2 {[%clk 0:00:02.7]} 33... Rb2 {[%clk 0:00:22.2]} 34. g4 {[%clk
0:00:02.1]} 34... Rxd2+ {[%clk 0:00:20.1]} 35. Kxd2 {[%clk 0:00:03]} 35... Qf2+
{[%clk 0:00:20.2]} 36. Re2 {[%clk 0:00:03.2]} 36... Qxf3 {[%clk 0:00:20.1]} 37.
Ke1 {[%clk 0:00:03.8]} 37... Qxd5 {[%clk 0:00:19.4]} 0-1

[Event "*** Titled Tuesday Blitz"]
[Site "Chess.com"]
[Date "2020.04.28"]
[Round "7"]
[White "EugeneRougon"]
[Black "Msb2"]
[Result "0-1"]
[WhiteElo "2781"]
[BlackElo "3018"]
[TimeControl "180+1"]
[EndTime "11:18:20 PDT"]
[Termination "Msb2 won by resignation"]

1. e4 {[%clk 0:03:00.9]} 1... e6 {[%clk 0:02:58.8]} 2. d4 {[%clk 0:03:00.7]}
2... d5 {[%clk 0:02:58.9]} 3. Nd2 {[%clk 0:03:00.8]} 3... c5 {[%clk 0:02:58.6]}
4. Ngf3 {[%clk 0:03:00.3]} 4... cxd4 {[%clk 0:02:58.3]} 5. Nxd4 {[%clk
0:03:01.2]} 5... Nf6 {[%clk 0:02:58.2]} 6. e5 {[%clk 0:03:01.5]} 6... Nfd7
{[%clk 0:02:57.7]} 7. N2f3 {[%clk 0:02:55.1]} 7... Nc6 {[%clk 0:02:57.6]} 8. Bb5
{[%clk 0:02:54.7]} 8... Qc7 {[%clk 0:02:55.3]} 9. Nxc6 {[%clk 0:02:53.9]} 9...
bxc6 {[%clk 0:02:56.2]} 10. Ba4 {[%clk 0:02:54.8]} 10... Nxe5 {[%clk 0:02:41.9]}
11. O-O {[%clk 0:02:32.6]} 11... Bd6 {[%clk 0:02:35.8]} 12. Nd4 {[%clk
0:02:14.8]} 12... Bd7 {[%clk 0:02:31.2]} 13. Bf4 {[%clk 0:02:03]} 13... O-O
{[%clk 0:02:17.9]} 14. Bg3 {[%clk 0:01:43.6]} 14... Rab8 {[%clk 0:02:09.8]} 15.
Rb1 {[%clk 0:01:26.5]} 15... Nc4 {[%clk 0:01:53.4]} 16. Bb3 {[%clk 0:01:23]}
16... Bxg3 {[%clk 0:01:42.4]} 17. hxg3 {[%clk 0:01:23]} 17... Nb6 {[%clk
0:01:42.6]} 18. c3 {[%clk 0:01:21.3]} 18... e5 {[%clk 0:01:33]} 19. Nf3 {[%clk
0:01:21.6]} 19... e4 {[%clk 0:01:25.4]} 20. Nd4 {[%clk 0:01:03.8]} 20... c5
{[%clk 0:01:22.7]} 21. Ne2 {[%clk 0:01:04]} 21... Rbd8 {[%clk 0:01:11.7]} 22.
Nf4 {[%clk 0:00:57.5]} 22... Bc6 {[%clk 0:01:11.5]} 23. Qh5 {[%clk 0:00:55.1]}
23... Qe7 {[%clk 0:00:56.3]} 24. Rbd1 {[%clk 0:00:53.2]} 24... g6 {[%clk
0:00:56.6]} 25. Qh6 {[%clk 0:00:47]} 25... Rd6 {[%clk 0:00:56.2]} 26. Nh3 {[%clk
0:00:37.4]} 26... Bd7 {[%clk 0:00:34.1]} 27. Rfe1 {[%clk 0:00:27.2]} 27... Bxh3
{[%clk 0:00:34.2]} 28. gxh3 {[%clk 0:00:25.5]} 28... Rfd8 {[%clk 0:00:30]} 29.
h4 {[%clk 0:00:24.5]} 29... Qe5 {[%clk 0:00:27.2]} 30. Qe3 {[%clk 0:00:18.3]}
30... Rc8 {[%clk 0:00:17.9]} 31. Qe2 {[%clk 0:00:15.1]} 31... Kg7 {[%clk
0:00:17]} 32. Qa6 {[%clk 0:00:13.9]} 32... Rc7 {[%clk 0:00:16.8]} 33. a4 {[%clk
0:00:13]} 33... Nc4 {[%clk 0:00:14.4]} 34. Bxc4 {[%clk 0:00:09.3]} 34... Rxa6
{[%clk 0:00:14]} 35. Bxa6 {[%clk 0:00:10.2]} 35... d4 {[%clk 0:00:13.8]} 36. Bd3
{[%clk 0:00:09.2]} 36... f5 {[%clk 0:00:13.7]} 37. f3 {[%clk 0:00:09.6]} 0-1